[Event "European Womens-ch 2025"]
[Site "Rhodes"]
[Date "2025.04.03"]
[Round "4.30"]
[White "Javakhishvili, Lela"]
[Black "Schloffer, Jasmin-Denise"]
[Result "1-0"]
[Annotator "RC"]
[ECO "E17"]
[WhiteElo "2429"]
[BlackElo "2188"]
[PlyCount "105"]
[EventDate "2025.03.29"]
[EventType "swiss"]
[EventCountry "GRE"]
[SourceTitle "playchess.com"]
[Source "ChessBase"]
[SourceQuality "1"]
[TimeControl "40/5400+30:1800+30"]

1. d4 {[%emt 0:00:04]} Nf6 {[%emt 0:00:06]} 2. c4 {[%emt 0:00:05]} e6 {[%emt 0:00:06]} 3. Nf3 {[%emt 0:00:10]} b6 {[%emt 0:00:08]} 4. g3 {[%emt 0:00:13]} Bb7 {[%emt 0:00:06]} 5. Bg2 {[%emt 0:00:06]} Be7 {[%emt 0:00:05]} 6. O-O {[%emt 0:00:20]} O-O {[%emt 0:00:07]} 7. Re1 {[%emt 0:04:30]} d5 {[%emt 0:00:13]} 8. cxd5 {[%emt 0:00:30]} exd5 {[%emt 0:00:05]} 9. Nc3 {[%emt 0:00:20]} Nbd7 {[%emt 0:03:18]} 10. Qc2 {[%emt 0:00:46]} c5 {[%emt 0:01:57]} 11. Bf4 {[%emt 0:03:44]} a6 {[%emt 0:12:07]} 12. dxc5 {[%emt 0:14:36]} bxc5 {[%emt 0:08:02]} 13. Ne5 {[%emt 0:00:55]} Ra7 {[%emt 0:07:28]} 14. Na4 {[%emt 0:08:57]} Nxe5 {[%emt 0:09:17]} 15. Bxe5 {[%emt 0:00:05]} Nd7 {[%emt 0:00:07]} 16. Bf4 {[%emt 0:01:06]} Qa5 {[%emt 0:05:33]} 17. b3 {[%emt 0:10:26]} Bc6 {[%emt 0:09:37]} 18. Nc3 {[%emt 0:02:48]} Nf6 {[%emt 0:01:25]} 19. Rac1 {[%emt 0:07:44]} Rd8 {[%emt 0:07:57]} 20. Red1 {[%emt 0:01:59]} Qb4 {[%emt 0:02:43]} 21. Nb1 {[%emt 0:02:35]} Ba8 {[%emt 0:04:49]} 22. Be5 {[%emt 0:02:48]} Qb6 {[%emt 0:01:28]} 23. Nc3 {[%emt 0:02:32]} Qe6 {[%emt 0:03:14]} 24. Bxf6 {[%emt 0:05:33]} gxf6 {[%emt 0:03:34]} 25. Rd2 {[%emt 0:04:08]} d4 {[%emt 0:05:03]} 26. Na4 {[%emt 0:03:15]} Bxg2 {[%emt 0:02:41]} 27. Kxg2 {[%emt 0:00:03]} Rc7 {[%emt 0:00:21]} 28. Qd3 {[%emt 0:02:45]} Rd5 {[%emt 0:04:33]} 29. Kg1 {[%emt 0:03:46]} Rh5 {[%emt 0:05:42]} 30. Qf3 {[%emt 0:00:28]} Qh3 {[%emt 0:00:30]} 31. Qg2 {[%emt 0:00:11]} Qe6 {[%emt 0:00:30]} 32. Nb2 {[%emt 0:02:33]} Bf8 {[%emt 0:00:52]} 33. Rdc2 {[%emt 0:00:56]} Bh6 {[%emt 0:01:15]} 34. Rd1 {[%emt 0:00:52]} Rc8 {[%emt 0:00:39]} 35. Nd3 {[%emt 0:08:54]} Kh8 {[%emt 0:00:50]} 36. Ne1 {[%emt 0:00:51]} Rd5 {[%emt 0:01:02]} 37. Qf3 {[%emt 0:01:28]} Rcd8 {[%emt 0:00:30]} 38. Qd3 {[%emt 0:01:36]} f5 {[%emt 0:00:41]} 39. f4 {[%emt 0:02:15]} Bg7 {[%emt 0:00:21]} 40. Rdc1 {[%emt 0:00:00]} Qd6 {[%emt 0:00:00]} 41. Qf3 {[%emt 0:02:59]} d3 {[%emt 0:12:09]} 42. Nxd3 {[%emt 0:00:17]} Bd4+ {[%emt 0:00:05]} 43. Kf1 {[%emt 0:03:04]} Re8 {[%emt 0:02:26]} 44. b4 {[%emt 0:01:27]} cxb4 {[%emt 0:02:26]} 45. Rc6 {[%emt 0:02:05]} Qd7 {[%emt 0:00:08]} 46. Nxb4 {[%emt 0:04:31]} Rb5 {[%emt 0:05:17]} 47. Nd3 {[%emt 0:02:34]} Ra5 {[%emt 0:01:43]} 48. R1c2 {[%emt 0:03:22]} Rb8 {[%emt 0:05:23]} 49. Kg2 {[%emt 0:00:30]} Rb1 {[%emt 0:00:38]} 50. Nc1 {[%emt 0:03:21]} Qe7 {[%emt 0:01:29]} 51. Qd3 {[%emt 0:03:51]} Bf6 {[%emt 0:03:15]} 52. Rc7 {[%emt 0:01:38]} Qe6 {[%emt 0:00:55]} 53. R2c6 {[%emt 0:00:26]} 1-0

[Event "European Womens-ch 2025"]
[Site "Rhodes"]
[Date "2025.04.03"]
[Round "4.31"]
[White "Pavlidou, Ekaterini"]
[Black "Vega Gutierrez, Sabrina"]
[Result "0-1"]
[Annotator "RC"]
[ECO "D31"]
[WhiteElo "2160"]
[BlackElo "2380"]
[PlyCount "74"]
[EventDate "2025.03.29"]
[EventType "swiss"]
[EventCountry "GRE"]
[SourceTitle "playchess.com"]
[Source "ChessBase"]
[SourceQuality "1"]
[TimeControl "40/5400+30:1800+30"]

1. d4 {[%emt 0:00:17]} d5 {[%emt 0:00:06]} 2. c4 {[%emt 0:00:17]} e6 {[%emt 0:00:08]} 3. Nf3 {[%emt 0:01:16]} a6 {[%emt 0:05:34]} 4. cxd5 {[%emt 0:03:13]} exd5 {[%emt 0:00:09]} 5. Nc3 {[%emt 0:02:05]} h6 {[%emt 0:02:22]} 6. Bf4 {[%emt 0:03:47]} Be6 {[%emt 0:01:54]} 7. e3 {[%emt 0:02:13]} Bd6 {[%emt 0:00:19]} 8. Bd3 {[%emt 0:07:25]} Bxf4 {[%emt 0:08:43]} 9. exf4 {[%emt 0:00:08]} Ne7 {[%emt 0:00:34]} 10. Qc2 {[%emt 0:03:35]} g6 {[%emt 0:02:33]} 11. h3 {[%emt 0:07:20]} Qd6 {[%emt 0:01:22]} 12. Qd2 {[%emt 0:03:32]} Nd7 {[%emt 0:09:23]} 13. Rc1 {[%emt 0:06:50]} f6 {[%emt 0:07:52]} 14. Ne2 {[%emt 0:06:42]} O-O-O {[%emt 0:05:07]} 15. O-O {[%emt 0:10:50]} g5 {[%emt 0:04:24]} 16. Rc3 {[%emt 0:02:19]} Kb8 {[%emt 0:01:57]} 17. Rfc1 {[%emt 0:00:36]} Rc8 {[%emt 0:00:57]} 18. Nh2 {[%emt 0:10:52]} Rhg8 {[%emt 0:03:54]} 19. fxg5 {[%emt 0:05:08]} hxg5 {[%emt 0:01:00]} 20. Re1 {[%emt 0:02:57]} f5 {[%emt 0:04:48]} 21. Nc1 {[%emt 0:08:04]} g4 {[%emt 0:06:27]} 22. hxg4 {[%emt 0:00:46]} fxg4 {[%emt 0:00:30]} 23. Qe2 {[%emt 0:03:14]} Rh8 {[%emt 0:02:12]} 24. Nf1 {[%emt 0:01:46]} Rh6 {[%emt 0:00:37]} 25. Ng3 {[%emt 0:00:31]} Rch8 {[%emt 0:04:13]} 26. Qe3 {[%emt 0:00:07]} Nf8 {[%emt 0:05:22]} 27. Nb3 {[%emt 0:01:05]} Nc6 {[%emt 0:06:45]} 28. Nc5 {[%emt 0:01:15]} Bc8 {[%emt 0:00:21]} 29. Rb3 {[%emt 0:02:28]} Ka7 {[%emt 0:00:37]} 30. Bf5 {[%emt 0:01:44]} Bxf5 {[%emt 0:04:05]} 31. Rxb7+ {[%emt 0:00:06]} Ka8 {[%emt 0:00:06]} 32. Qa3 {[%emt 0:01:08]} Nd8 {[%emt 0:01:43]} 33. Re8 {[%emt 0:01:01]} Bc8 {[%emt 0:04:41]} 34. Rxd8 {[%emt 0:00:55]} Qxd8 {[%emt 0:00:13]} 35. Nxa6 {[%emt 0:01:52]} Bxb7 {[%emt 0:01:45]} 36. Nxc7+ {[%emt 0:00:28]} Kb8 {[%emt 0:00:08]} 37. Nb5 {[%emt 0:00:07]} Qb6 {[%emt 0:00:48]} 0-1

[Event "European Womens-ch 2025"]
[Site "Rhodes"]
[Date "2025.04.03"]
[Round "4.32"]
[White "Zawadzka, Jolanta"]
[Black "Rodshtein, Tereza"]
[Result "1/2-1/2"]
[Annotator "RC"]
[ECO "A34"]
[WhiteElo "2326"]
[BlackElo "2171"]
[PlyCount "71"]
[EventDate "2025.03.29"]
[EventType "swiss"]
[EventCountry "GRE"]
[SourceTitle "playchess.com"]
[Source "ChessBase"]
[SourceQuality "1"]
[TimeControl "40/5400+30:1800+30"]

1. Nf3 {[%emt 0:00:06]} Nf6 {[%emt 0:05:26]} 2. c4 {[%emt 0:00:16]} c5 {[%emt 0:01:04]} 3. Nc3 {[%emt 0:00:45]} d5 {[%emt 0:00:38]} 4. cxd5 {[%emt 0:05:57]} Nxd5 {[%emt 0:00:08]} 5. e4 {[%emt 0:01:20]} Nb4 {[%emt 0:09:23]} 6. Bb5+ {[%emt 0:25:12]} N8c6 {[%emt 0:07:30]} 7. d3 {[%emt 0:06:51]} a6 {[%emt 0:10:27]} 8. Bxc6+ {[%emt 0:00:05]} Nxc6 {[%emt 0:01:48]} 9. Be3 {[%emt 0:00:11]} e5 {[%emt 0:03:09]} 10. O-O {[%emt 0:00:25]} Bd6 {[%emt 0:01:56]} 11. Rc1 {[%emt 0:04:01]} O-O {[%emt 0:02:32]} 12. Nd2 {[%emt 0:14:45]} Be6 {[%emt 0:05:48]} 13. a3 {[%emt 0:00:12]} Rc8 {[%emt 0:00:46]} 14. Ne2 {[%emt 0:05:02]} Kh8 {[%emt 0:12:20]} 15. Nc4 {[%emt 0:09:43]} Nd4 {[%emt 0:05:04]} 16. Bxd4 {[%emt 0:01:04]} exd4 {[%emt 0:00:52]} 17. Nxd6 {[%emt 0:00:16]} Qxd6 {[%emt 0:00:05]} 18. f4 {[%emt 0:00:19]} f5 {[%emt 0:01:15]} 19. Ng3 {[%emt 0:00:43]} b5 {[%emt 0:01:04]} 20. Qe2 {[%emt 0:07:04]} h6 {[%emt 0:10:17]} 21. exf5 {[%emt 0:01:32]} Bxf5 {[%emt 0:00:11]} 22. b4 {[%emt 0:01:52]} c4 {[%emt 0:02:52]} 23. Nxf5 {[%emt 0:00:22]} Rxf5 {[%emt 0:00:01]} 24. dxc4 {[%emt 0:00:19]} bxc4 {[%emt 0:00:59]} 25. Rxc4 {[%emt 0:00:31]} Rxc4 {[%emt 0:00:31]} 26. Qxc4 {[%emt 0:00:06]} Rxf4 {[%emt 0:00:08]} 27. Rd1 {[%emt 0:01:11]} Qe5 {[%emt 0:06:29]} 28. h3 {[%emt 0:07:09]} Qe3+ {[%emt 0:02:48]} 29. Kh2 {[%emt 0:00:06]} Qe5 {[%emt 0:02:48]} 30. Kh1 {[%emt 0:00:48]} Rf6 {[%emt 0:05:03]} 31. a4 {[%emt 0:01:49]} Qe4 {[%emt 0:01:13]} 32. Qd3 {[%emt 0:06:28]} Qd5 {[%emt 0:00:37]} 33. Rc1 {[%emt 0:00:00]} Rf8 {[%emt 0:00:34]} 34. b5 {[%emt 0:00:00]} axb5 {[%emt 0:00:04]} 35. axb5 {[%emt 0:00:00]} Qf5 {[%emt 0:00:40]} 36. Qxd4 {[%emt 0:00:29]} 1/2-1/2

[Event "European Womens-ch 2025"]
[Site "Rhodes"]
[Date "2025.04.03"]
[Round "4.33"]
[White "Eric, Jovana"]
[Black "Doluhanova, Evgeniya"]
[Result "1/2-1/2"]
[Annotator "RC"]
[ECO "C54"]
[WhiteElo "2147"]
[BlackElo "2287"]
[PlyCount "24"]
[EventDate "2025.03.29"]
[EventType "swiss"]
[EventCountry "GRE"]
[SourceTitle "playchess.com"]
[Source "ChessBase"]
[SourceQuality "1"]
[TimeControl "40/5400+30:1800+30"]

1. e4 {[%emt 0:00:03]} e5 {[%emt 0:01:15]} 2. Nf3 {[%emt 0:00:11]} Nc6 {[%emt 0:00:04]} 3. Bc4 {[%emt 0:00:16]} Bc5 {[%emt 1:30:41]} 4. c3 {[%emt 0:00:30]} Nf6 {[%emt 0:00:00]} 5. d3 {[%emt 0:00:29]} O-O {[%emt 0:00:00]} 6. O-O {[%emt 0:01:37]} d6 {[%emt 0:00:00]} 7. h3 {[%emt 0:02:01]} h6 {[%emt 0:00:00]} 8. Re1 {[%emt 0:01:27]} a5 {[%emt 0:00:00]} 9. a4 {[%emt 0:00:38]} Bb6 {[%emt 0:00:00]} 10. Nbd2 {[%emt 0:01:16]} Ne7 {[%emt 0:00:00]} 11. Nf1 {[%emt 0:00:28]} c6 {[%emt 0:00:00]} 12. Ng3 {[%emt 0:01:37]} Ng6 {[%emt 0:00:00]} 1/2-1/2

[Event "European Womens-ch 2025"]
[Site "Rhodes"]
[Date "2025.04.03"]
[Round "4.34"]
[White "Avramidou, Anastasia"]
[Black "Abdinova, Narmin"]
[Result "1/2-1/2"]
[Annotator "RC"]
[ECO "A13"]
[WhiteElo "2275"]
[BlackElo "2165"]
[PlyCount "33"]
[EventDate "2025.03.29"]
[EventType "swiss"]
[EventCountry "GRE"]
[SourceTitle "playchess.com"]
[Source "ChessBase"]
[SourceQuality "1"]
[TimeControl "40/5400+30:1800+30"]

1. c4 {[%emt 0:00:05]} Nf6 {[%emt 0:04:06]} 2. Nc3 {[%emt 0:00:12]} e6 {[%emt 0:02:50]} 3. Nf3 {[%emt 0:00:16]} d5 {[%emt 0:01:54]} 4. e3 {[%emt 0:02:13]} Be7 {[%emt 0:02:22]} 5. b3 {[%emt 0:04:55]} O-O {[%emt 0:01:37]} 6. Bb2 {[%emt 0:00:24]} c5 {[%emt 0:04:14]} 7. d4 {[%emt 0:05:50]} cxd4 {[%emt 0:04:25]} 8. exd4 {[%emt 0:03:20]} dxc4 {[%emt 0:27:00]} 9. bxc4 {[%emt 0:02:22]} Qa5 {[%emt 0:00:06]} 10. Qd2 {[%emt 0:20:47]} Nc6 {[%emt 0:01:45]} 11. Bd3 {[%emt 0:09:47]} Rd8 {[%emt 0:00:12]} 12. O-O {[%emt 0:00:07]} Kh8 {[%emt 0:04:24]} 13. Nb1 {[%emt 0:22:06]} Qh5 {[%emt 0:16:06]} 14. Be2 {[%emt 0:05:40]} Qf5 {[%emt 0:00:02]} 15. Bd3 {[%emt 0:01:48]} Qh5 {[%emt 0:00:07]} 16. Be2 {[%emt 0:00:07]} Qf5 {[%emt 0:04:36]} 17. Bd3 {[%emt 0:00:08]} 1/2-1/2

[Event "European Womens-ch 2025"]
[Site "Rhodes"]
[Date "2025.04.03"]
[Round "4.35"]
[White "Dicen, Elis Denele"]
[Black "Smietanska, Wiktoria"]
[Result "0-1"]
[Annotator "RC"]
[ECO "D02"]
[WhiteElo "2129"]
[BlackElo "2254"]
[PlyCount "88"]
[EventDate "2025.03.29"]
[EventType "swiss"]
[EventCountry "GRE"]
[SourceTitle "playchess.com"]
[Source "ChessBase"]
[SourceQuality "1"]
[TimeControl "40/5400+30:1800+30"]

1. d4 {[%emt 0:00:03]} d5 {[%emt 0:00:07]} 2. Bf4 {[%emt 0:00:08]} c5 {[%emt 0:00:15]} 3. e3 {[%emt 0:00:11]} Nc6 {[%emt 0:00:32]} 4. Nf3 {[%emt 0:00:24]} Nf6 {[%emt 0:00:14]} 5. Nbd2 {[%emt 0:00:10]} cxd4 {[%emt 0:01:59]} 6. exd4 {[%emt 0:00:18]} Bf5 {[%emt 0:02:11]} 7. c3 {[%emt 0:01:26]} h6 {[%emt 0:05:14]} 8. Qb3 {[%emt 0:02:54]} Qc8 {[%emt 0:02:48]} 9. Ne5 {[%emt 0:07:27]} e6 {[%emt 0:08:39]} 10. Qa4 {[%emt 0:05:47]} a6 {[%emt 0:12:59]} 11. Be2 {[%emt 0:08:56]} Be7 {[%emt 0:03:26]} 12. O-O {[%emt 0:03:23]} O-O {[%emt 0:03:10]} 13. Ndf3 {[%emt 0:01:45]} Nd7 {[%emt 0:04:09]} 14. Qd1 {[%emt 0:04:12]} b5 {[%emt 0:03:33]} 15. a4 {[%emt 0:08:08]} Ndxe5 {[%emt 0:05:00]} 16. dxe5 {[%emt 0:03:33]} b4 {[%emt 0:06:06]} 17. Nd4 {[%emt 0:04:44]} Nxd4 {[%emt 0:07:27]} 18. cxd4 {[%emt 0:00:21]} Qc2 {[%emt 0:02:02]} 19. Qd2 {[%emt 0:06:43]} Rfc8 {[%emt 0:03:45]} 20. Rfc1 {[%emt 0:03:01]} Qxd2 {[%emt 0:01:12]} 21. Bxd2 {[%emt 0:00:09]} Bc2 {[%emt 0:00:13]} 22. f4 {[%emt 0:06:27]} a5 {[%emt 0:07:58]} 23. Kf2 {[%emt 0:02:16]} Bd8 {[%emt 0:00:16]} 24. Ke3 {[%emt 0:02:20]} Bb6 {[%emt 0:01:20]} 25. Bd3 {[%emt 0:01:11]} Bb3 {[%emt 0:01:58]} 26. g4 {[%emt 0:06:21]} f6 {[%emt 0:03:23]} 27. Bb5 {[%emt 0:02:19]} Kf7 {[%emt 0:02:55]} 28. Rxc8 {[%emt 0:04:35]} Rxc8 {[%emt 0:00:03]} 29. Rc1 {[%emt 0:01:50]} Rxc1 {[%emt 0:04:33]} 30. Bxc1 {[%emt 0:00:07]} Bc4 {[%emt 0:01:53]} 31. Bd7 {[%emt 0:02:44]} Ke7 {[%emt 0:00:53]} 32. Bc6 {[%emt 0:01:49]} g5 {[%emt 0:00:40]} 33. Bb5 {[%emt 0:05:06]} gxf4+ {[%emt 0:01:14]} 34. Kxf4 {[%emt 0:00:11]} Bxd4 {[%emt 0:01:07]} 35. exf6+ {[%emt 0:00:52]} Bxf6 {[%emt 0:01:24]} 36. Bxc4 {[%emt 0:00:58]} dxc4 {[%emt 0:02:41]} 37. Ke4 {[%emt 0:00:29]} Kf7 {[%emt 0:01:03]} 38. h4 {[%emt 0:02:37]} Kg6 {[%emt 0:00:35]} 39. h5+ {[%emt 0:00:39]} Kg7 {[%emt 0:00:02]} 40. Kf3 {[%emt 0:00:00]} b3 {[%emt 0:00:00]} 41. Ke2 {[%emt 0:01:39]} c3 {[%emt 0:00:57]} 42. g5 {[%emt 0:01:41]} Bxg5 {[%emt 0:01:08]} 43. Bxg5 {[%emt 0:00:44]} hxg5 {[%emt 0:00:10]} 44. bxc3 {[%emt 0:00:12]} b2 {[%emt 0:00:04]} 0-1

[Event "European Womens-ch 2025"]
[Site "Rhodes"]
[Date "2025.04.03"]
[Round "4.36"]
[White "Khachatryan, Anna"]
[Black "Sandu, Mihaela"]
[Result "1/2-1/2"]
[Annotator "RC"]
[ECO "E39"]
[WhiteElo "2091"]
[BlackElo "2230"]
[PlyCount "137"]
[EventDate "2025.03.29"]
[EventType "swiss"]
[EventCountry "GRE"]
[SourceTitle "playchess.com"]
[Source "ChessBase"]
[SourceQuality "1"]
[TimeControl "40/5400+30:1800+30"]

1. d4 {[%emt 0:00:03]} Nf6 {[%emt 0:02:52]} 2. c4 {[%emt 0:00:17]} e6 {[%emt 0:00:04]} 3. Nc3 {[%emt 0:00:11]} Bb4 {[%emt 0:00:06]} 4. Qc2 {[%emt 0:00:07]} c5 {[%emt 0:00:42]} 5. dxc5 {[%emt 0:00:22]} Bxc5 {[%emt 0:02:05]} 6. Nf3 {[%emt 0:03:01]} O-O {[%emt 0:04:38]} 7. Bg5 {[%emt 0:09:18]} Be7 {[%emt 0:01:24]} 8. e3 {[%emt 0:00:19]} d6 {[%emt 0:01:07]} 9. Be2 {[%emt 0:06:05]} Nbd7 {[%emt 0:04:37]} 10. O-O {[%emt 0:03:19]} b6 {[%emt 0:06:07]} 11. Rfd1 {[%emt 0:01:08]} Bb7 {[%emt 0:00:12]} 12. Nb5 {[%emt 0:16:08]} h6 {[%emt 0:15:39]} 13. Bf4 {[%emt 0:15:18]} e5 {[%emt 0:05:24]} 14. Bg3 {[%emt 0:00:08]} Ne4 {[%emt 0:02:20]} 15. Nd2 {[%emt 0:13:36]} Nxg3 {[%emt 0:02:44]} 16. hxg3 {[%emt 0:00:04]} a6 {[%emt 0:00:26]} 17. Nc3 {[%emt 0:00:38]} f5 {[%emt 0:48:33]} 18. b4 Qc7 {[%emt 0:00:00]} 19. Qb3 {[%emt 0:09:51]} Nf6 {[%emt 0:00:00]} 20. Rac1 {[%emt 0:02:40]} Kh8 {[%emt 0:00:00]} 21. Nd5 {[%emt 0:01:42]} Qd8 {[%emt 0:00:00]} 22. Nf3 {[%emt 0:03:34]} Nxd5 {[%emt 0:00:00]} 23. cxd5 {[%emt 0:00:03]} Qd7 {[%emt 0:00:00]} 24. b5 {[%emt 0:02:48]} a5 {[%emt 0:03:30]} 25. Rc6 {[%emt 0:01:40]} Bd8 {[%emt 0:00:00]} 26. Nd2 {[%emt 0:11:10]} Bc7 {[%emt 0:00:00]} 27. Rc3 {[%emt 0:00:00]} Qf7 {[%emt 0:00:00]} 28. e4 {[%emt 0:00:00]} Rad8 {[%emt 0:00:00]} 29. Rf3 {[%emt 0:00:00]} Qd7 {[%emt 0:00:00]} 30. exf5 {[%emt 0:00:31]} Rxf5 {[%emt 0:00:00]} 31. Bd3 {[%emt 0:00:35]} Rxf3 {[%emt 0:00:00]} 32. gxf3 {[%emt 0:00:10]} Qf7 {[%emt 0:00:00]} 33. Be4 {[%emt 0:00:14]} g5 {[%emt 0:00:00]} 34. Nc4 {[%emt 0:00:11]} Qd7 {[%emt 0:00:23]} 35. a4 {[%emt 0:00:33]} Rf8 {[%emt 0:00:10]} 36. Qe3 {[%emt 0:00:25]} Qd8 {[%emt 0:00:25]} 37. Kg2 {[%emt 0:00:08]} Kg7 {[%emt 0:00:35]} 38. Rc1 {[%emt 0:01:43]} Bc8 {[%emt 0:00:25]} 39. Qc3 {[%emt 0:00:19]} Bb8 {[%emt 0:00:58]} 40. Qe3 {[%emt 0:02:11]} Bc7 {[%emt 0:00:00]} 41. Qc3 {[%emt 0:00:00]} Bb8 {[%emt 0:01:39]} 42. Ne3 {[%emt 0:06:39]} h5 {[%emt 0:13:01]} 43. Rh1 {[%emt 0:09:09]} Rh8 {[%emt 0:05:07]} 44. Bf5 {[%emt 0:01:49]} Bxf5 {[%emt 0:02:29]} 45. Nxf5+ {[%emt 0:00:01]} Kf6 {[%emt 0:00:14]} 46. g4 {[%emt 0:04:02]} h4 {[%emt 0:07:37]} 47. Rc1 {[%emt 0:00:35]} Rh7 {[%emt 0:01:09]} 48. Qc8 {[%emt 0:08:31]} Qxc8 {[%emt 0:00:59]} 49. Rxc8 {[%emt 0:00:01]} Bc7 {[%emt 0:00:53]} 50. Re8 {[%emt 0:00:47]} Rd7 {[%emt 0:00:26]} 51. Re6+ {[%emt 0:01:13]} Kf7 {[%emt 0:00:05]} 52. Rh6 {[%emt 0:01:00]} Kg8 {[%emt 0:02:15]} 53. Rg6+ {[%emt 0:00:23]} Kf8 {[%emt 0:00:05]} 54. Rxg5 {[%emt 0:00:26]} Bd8 {[%emt 0:00:18]} 55. Rg6 {[%emt 0:00:22]} Rh7 {[%emt 0:02:15]} 56. Kh3 {[%emt 0:01:37]} Rc7 {[%emt 0:00:38]} 57. Rxd6 {[%emt 0:00:14]} Bg5 {[%emt 0:00:06]} 58. Rc6 {[%emt 0:00:22]} Rd7 {[%emt 0:00:09]} 59. d6 {[%emt 0:01:02]} Bd8 {[%emt 0:00:09]} 60. g5 {[%emt 0:01:07]} Bxg5 {[%emt 0:01:31]} 61. Rxb6 {[%emt 0:00:12]} Kf7 {[%emt 0:00:37]} 62. Kg4 {[%emt 0:00:50]} Bd8 {[%emt 0:00:18]} 63. Rc6 {[%emt 0:00:23]} Ke6 {[%emt 0:00:14]} 64. Rc1 {[%emt 0:00:37]} Rf7 {[%emt 0:00:35]} 65. Rc8 {[%emt 0:00:34]} Rxf5 {[%emt 0:00:53]} 66. Rxd8 {[%emt 0:00:01]} Rf4+ {[%emt 0:00:14]} 67. Kg5 {[%emt 0:01:01]} Rxa4 {[%emt 0:00:09]} 68. b6 {[%emt 0:00:16]} Rb4 {[%emt 0:00:10]} 69. Ra8 {[%emt 0:00:22]} 1/2-1/2

[Event "European Womens-ch 2025"]
[Site "Rhodes"]
[Date "2025.04.03"]
[Round "4.37"]
[White "Khurtsilava, Inga"]
[Black "Yildiz, Elif Zeren"]
[Result "1/2-1/2"]
[Annotator "RC"]
[ECO "A21"]
[WhiteElo "2214"]
[BlackElo "2160"]
[PlyCount "106"]
[EventDate "2025.03.29"]
[EventType "swiss"]
[EventCountry "GRE"]
[SourceTitle "playchess.com"]
[Source "ChessBase"]
[SourceQuality "1"]
[TimeControl "40/5400+30:1800+30"]

1. c4 {[%emt 0:02:03]} e5 {[%emt 0:00:05]} 2. Nc3 {[%emt 0:00:05]} Bb4 {[%emt 0:00:05]} 3. g3 {[%emt 0:00:45]} Bxc3 {[%emt 0:00:51]} 4. dxc3 {[%emt 0:00:28]} Nc6 {[%emt 0:02:32]} 5. Bg2 {[%emt 0:00:17]} d6 {[%emt 0:00:45]} 6. c5 {[%emt 0:02:59]} Nf6 {[%emt 0:01:45]} 7. cxd6 {[%emt 0:00:45]} cxd6 {[%emt 0:00:06]} 8. Bg5 {[%emt 0:02:46]} h6 {[%emt 0:03:36]} 9. Bxf6 {[%emt 0:00:19]} Qxf6 {[%emt 0:00:02]} 10. Nf3 {[%emt 0:01:42]} O-O {[%emt 0:04:20]} 11. O-O {[%emt 0:03:25]} Rd8 {[%emt 0:06:10]} 12. e4 {[%emt 0:04:35]} Be6 {[%emt 0:04:18]} 13. Nd2 {[%emt 0:03:39]} d5 {[%emt 0:10:25]} 14. exd5 {[%emt 0:00:45]} Bxd5 {[%emt 0:00:05]} 15. Bxd5 {[%emt 0:00:10]} Rxd5 {[%emt 0:00:07]} 16. Ne4 {[%emt 0:00:17]} Qe6 {[%emt 0:00:07]} 17. Qb3 {[%emt 0:02:17]} b6 {[%emt 0:02:30]} 18. Rad1 {[%emt 0:05:17]} Rad8 {[%emt 0:05:32]} 19. Rxd5 {[%emt 0:00:11]} Qxd5 {[%emt 0:00:06]} 20. Qxd5 {[%emt 0:00:23]} Rxd5 {[%emt 0:00:04]} 21. g4 {[%emt 0:00:15]} f6 {[%emt 0:03:58]} 22. f3 {[%emt 0:02:13]} Kf7 {[%emt 0:02:49]} 23. Kf2 {[%emt 0:01:01]} Nd8 {[%emt 0:02:11]} 24. Ke3 {[%emt 0:00:51]} Ne6 {[%emt 0:01:33]} 25. Rf2 {[%emt 0:01:29]} h5 {[%emt 0:10:09]} 26. Rd2 {[%emt 0:03:00]} Rxd2 {[%emt 0:00:43]} 27. Kxd2 hxg4 {[%emt 0:00:44]} 28. fxg4 {[%emt 0:00:51]} Ke7 {[%emt 0:02:31]} 29. h4 {[%emt 0:04:05]} g6 {[%emt 0:03:14]} 30. Ng3 {[%emt 0:00:56]} Nf8 {[%emt 0:01:04]} 31. Ke3 {[%emt 0:08:37]} Ke6 {[%emt 0:00:12]} 32. Ke4 {[%emt 0:00:48]} Nh7 {[%emt 0:01:27]} 33. c4 {[%emt 0:01:59]} f5+ {[%emt 0:01:06]} 34. Kf3 {[%emt 0:00:23]} Nf6 {[%emt 0:00:40]} 35. g5 {[%emt 0:01:29]} Nd7 {[%emt 0:00:03]} 36. h5 {[%emt 0:01:03]} gxh5 {[%emt 0:01:02]} 37. Nxh5 {[%emt 0:06:28]} Kf7 {[%emt 0:00:05]} 38. Kg3 {[%emt 0:00:06]} Kg6 {[%emt 0:10:44]} 39. Kh4 {[%emt 0:00:07]} a5 {[%emt 0:02:28]} 40. b3 {[%emt 0:00:00]} f4 {[%emt 0:00:00]} 41. Kg4 {[%emt 0:01:37]} f3 {[%emt 0:03:31]} 42. Ng3 {[%emt 0:05:20]} f2 {[%emt 0:00:06]} 43. Kf3 {[%emt 0:00:54]} Kxg5 {[%emt 0:00:34]} 44. Ne4+ {[%emt 0:00:11]} Kf5 {[%emt 0:00:06]} 45. Nxf2 {[%emt 0:00:07]} Nc5 {[%emt 0:04:29]} 46. Ke3 {[%emt 0:03:38]} Na6 {[%emt 0:02:30]} 47. Ne4 {[%emt 0:01:42]} Nb4 {[%emt 0:00:49]} 48. Nd6+ {[%emt 0:04:52]} Ke6 {[%emt 0:00:05]} 49. Nc8 {[%emt 0:00:14]} Nxa2 {[%emt 0:00:06]} 50. Kd2 {[%emt 0:09:10]} e4 {[%emt 0:00:59]} 51. Nxb6 {[%emt 0:00:44]} e3+ {[%emt 0:00:04]} 52. Kxe3 {[%emt 0:01:36]} Nc1 {[%emt 0:00:03]} 53. c5 {[%emt 0:00:40]} Nxb3 {[%emt 0:00:07]} 1/2-1/2